fUSD/lending_fUSD_20240616
["ID","MTS","AMOUNT","RATE_DAILY","PERIOD"]
[329636538,1718519516836,-500.0,0.00024109,3]
[329636539,1718519516863,-637.63,0.00024109,3]
[329636540,1718519516890,-500.0,0.00024109,3]
[329636541,1718519516905,-534.11,0.00024109,3]
[329636542,1718519516919,-500.0,0.00024109,3]
[329636543,1718519516952,-500.0,0.00024109,3]
[329636544,1718519516975,-733.88,0.00024109,3]
[329636545,1718519516993,-1079.11,0.00024109,3]
[329636546,1718519517006,-990.93,0.00024109,3]
[329636547,1718519517020,-500.0,0.00024109,3]
[329636548,1718519517035,-500.0,0.00024109,3]
[329636549,1718519517049,-500.0,0.00024109,3]
[329636550,1718519517073,-500.0,0.00024109,3]
[329636551,1718519517089,-592.82,0.00024109,3]
[329636552,1718519517101,-2735.16,0.00024109,3]
[329636553,1718519517114,-599.16,0.00024109,3]
[329636554,1718519517127,-631.36,0.00024109,3]
[329636555,1718519517147,-505.74,0.00024109,3]
[329636556,1718519517158,-609.47,0.00024109,3]
[329636557,1718519517181,-707.73,0.00024109,3]
[329636558,1718519517195,-500.0,0.00024109,3]
[329636559,1718519517209,-598.47,0.00024109,3]
[329636560,1718519517229,-537.61,0.00024109,3]
[329636561,1718519517243,-164.04553704,0.0002411,2]
[329636562,1718519517265,-152.0,0.00024118,5]
[329636563,1718519517279,-160.02955024,0.00024123,2]
[329636564,1718519517295,-419.60799944,0.00024128,2]
[329636565,1718519517314,-152.19673152,0.00024134,2]
[329636566,1718519517331,-154.01467209,0.00024134,2]
[329636567,1718519517353,-5000.0,0.00024136,2]
[329636568,1718519517385,-151.0,0.00024136,3]
[329636569,1718519517403,-152.19673152,0.00024139,2]
[329636570,1718519517417,-5000.0,0.00024143,2]
[329636571,1718519517430,-152.19673152,0.00024144,2]
[329636572,1718519517452,-172.33372868,0.00024146,2]
[329636573,1718519517469,-150.0,0.00024156,2]
[329636574,1718519517486,-296.2601255,0.00024164,2]
[329636575,1718519517500,-150.0,0.00024184,2]
[329636576,1718519517518,-324.0,0.0002419,2]
[329636577,1718519517531,-208.0,0.0002419,2]
[329636578,1718519517547,-150.0,0.00024191,2]
[329636579,1718519517563,-1500.0,0.00024192,2]
[329636580,1718519517579,-166.65534304,0.00024194,2]
[329636581,1718519517595,-1018.0,0.000242,2]
[329636582,1718519517611,-152.1581309,0.00024211,2]
[329636583,1718519517624,-166.66666666,0.0002422,2]
[329636584,1718519517646,-180.0,0.0002423,2]
[329636585,1718519517658,-150.0,0.00024235,2]
[329636586,1718519517672,-419.60799944,0.00024238,2]
[329636587,1718519517684,-150.0,0.00024239,2]
[329636588,1718519517697,-153.37724975,0.0002424,2]
[329636589,1718519517709,-150.0,0.00024245,2]
[329636590,1718519517721,-150.0,0.00024245,2]
[329636591,1718519517734,-5000.0,0.0002425,2]
[329636592,1718519517750,-296.2601255,0.00024252,2]
[329636593,1718519517763,-296.2601255,0.00024256,2]
[329636594,1718519517791,-308.52320539,0.00024268,2]
[329636595,1718519517814,-150.0,0.00024275,2]
[329636597,1718519517853,-1500.0,0.00024279,2]
[329636598,1718519517879,-150.0,0.00024279,2]
[329636599,1718519517913,-150.0,0.00024283,2]
[329636600,1718519517927,-152.19673152,0.00024288,2]
[329636601,1718519517943,-5000.0,0.00024294,2]
[329636602,1718519517979,-166.66666666,0.00024294,2]
[329636603,1718519517994,-150.0,0.00024317,2]
[329636604,1718519518020,-150.0,0.00024319,2]
[329636605,1718519518032,-2513.51,0.00024343,2]
[329636606,1718519518052,-150.0,0.0002435,2]
[329636607,1718519518079,-150.0,0.00024357,2]
[329636608,1718519518102,-419.60799944,0.00024367,2]
[329636609,1718519518115,-160.02955024,0.00024369,2]
[329636610,1718519518133,-150.0,0.00024375,2]
[329636611,1718519518145,-166.66666668,0.00024376,2]
[329636612,1718519518159,-572.85988994,0.00024376,2]
[329636613,1718519518175,-500.0,0.00024383,3]
[329636614,1718519518208,-500.0,0.00024383,3]
[329636615,1718519518248,-589.23327541,0.00024383,3]
[329636616,1718519518271,-458.95236822,0.00024383,3]
[329636617,1718519518290,-500.0,0.00024383,3]
[329636618,1718519518313,-500.0,0.00024383,3]
[329636619,1718519518348,-500.0,0.00024383,3]
[329636620,1718519518368,-500.0,0.00024383,3]
[329636621,1718519518385,-500.0,0.00024383,3]
[329636622,1718519518399,-500.0,0.00024383,3]
[329636623,1718519518412,-519.58,0.00024383,3]
[329636624,1718519518425,-500.0,0.00024383,3]
[329636625,1718519518449,-500.0,0.00024383,3]
[329636626,1718519518460,-500.0,0.00024383,3]
[329636627,1718519518476,-500.0,0.00024383,3]
[329636628,1718519518491,-500.0,0.00024383,3]
[329636629,1718519518502,-500.0,0.00024383,3]
[329636630,1718519518523,-500.0,0.00024383,3]
[329636631,1718519518557,-500.0,0.00024383,3]
[329636632,1718519518569,-500.0,0.00024383,3]
[329636633,1718519518581,-500.0,0.00024383,3]
[329636634,1718519518608,-500.0,0.00024383,3]
[329636635,1718519518619,-521.4,0.00024383,3]
[329636636,1718519518632,-500.0,0.00024383,3]
[329636637,1718519518652,-500.0,0.00024383,3]
[329636638,1718519518678,-500.0,0.00024383,3]
[329636639,1718519518693,-881.45,0.00024383,3]
[329636640,1718519518729,-500.0,0.00024383,3]
[329636641,1718519518745,-500.0,0.00024383,3]
[329636642,1718519518786,-500.0,0.00024383,3]
[329636643,1718519518832,-500.0,0.00024383,3]
[329636644,1718519518866,-517.49,0.00024383,3]
[329636645,1718519518895,-500.0,0.00024383,3]
[329636646,1718519518925,-500.0,0.00024383,3]
[329636647,1718519518947,-517.12,0.00024383,3]
[329636648,1718519518963,-500.0,0.00024383,3]
[329636649,1718519518992,-500.0,0.00024383,3]
[329636650,1718519519040,-388.35720112,0.00024383,3]
[329636651,1718519519052,-500.0,0.00024383,3]
[329636652,1718519519084,-500.0,0.00024383,3]
[329636653,1718519519108,-500.0,0.00024383,3]
[329636654,1718519519122,-500.0,0.00024383,3]
[329636655,1718519519141,-500.0,0.00024383,3]
[329636656,1718519519163,-558.88,0.00024383,3]
[329636657,1718519519175,-500.0,0.00024383,3]
[329636658,1718519519194,-695.39,0.00024383,3]
[329636659,1718519519206,-500.0,0.00024383,3]
[329636660,1718519519218,-500.0,0.00024383,3]
[329636661,1718519519230,-500.0,0.00024383,3]
[329636662,1718519519243,-518.8,0.00024383,3]
[329636663,1718519519254,-500.0,0.00024383,3]
[329636664,1718519519267,-462.45395033,0.00024383,3]
[329636665,1718519519281,-500.0,0.00024383,3]
[329636666,1718519519302,-500.0,0.00024383,3]
[329636667,1718519519316,-579.83,0.00024383,3]
[329636668,1718519519333,-500.0,0.00024383,3]
[329636669,1718519519352,-500.0,0.00024383,3]
[329636670,1718519519376,-327.64243888,0.00024383,3]
[329636671,1718519519390,-500.0,0.00024383,3]
[329636672,1718519519403,-500.0,0.00024383,3]
[329636673,1718519519414,-665.03,0.00024383,3]
[329636674,1718519519425,-500.0,0.00024383,3]
[329636675,1718519519448,-500.0,0.00024383,3]
[329636676,1718519519459,-500.0,0.00024383,3]
[329636677,1718519519471,-500.0,0.00024383,3]
[329636678,1718519519486,-500.0,0.00024383,3]
[329636679,1718519519500,-500.0,0.00024383,3]
[329636680,1718519519516,-538.51,0.00024383,3]
[329636681,1718519519533,-577.03,0.00024383,3]
[329636682,1718519519563,-500.0,0.00024383,3]
[329636683,1718519519627,-500.0,0.00024383,3]
[329636684,1718519519639,-500.0,0.00024383,3]
[329636685,1718519519654,-618.93,0.00024383,3]
[329636686,1718519519669,-500.0,0.00024383,3]
[329636687,1718519519685,-689.97,0.00024383,3]
[329636688,1718519519713,-500.0,0.00024383,3]
[329636689,1718519519734,-500.0,0.00024383,3]
[329636690,1718519519774,-500.0,0.00024383,3]
[329636691,1718519519800,-500.0,0.00024383,3]
[329636692,1718519519817,-500.0,0.00024383,3]
[329636693,1718519519829,-732.2,0.00024383,3]
[329636694,1718519519841,-500.0,0.00024383,3]
[329636695,1718519519853,-189.62683977,0.00024383,3]
[329636696,1718519519927,-166.64869277,0.00024383,3]
[329636697,1718519519949,-500.0,0.00024383,3]
[329636698,1718519519960,-528.47,0.00024383,3]
[329636699,1718519519996,-500.0,0.00024383,3]
[329636700,1718519520009,-500.0,0.00024383,3]
[329636701,1718519520021,-523.56,0.00024383,3]
[329636702,1718519520036,-500.0,0.00024383,3]
[329636703,1718519520047,-500.0,0.00024383,3]
[329636704,1718519520076,-784.49,0.00024383,3]
[329636705,1718519520087,-500.0,0.00024383,3]
[329636706,1718519520098,-500.0,0.00024383,3]
[329636707,1718519520120,-500.0,0.00024383,3]
[329636708,1718519520133,-500.0,0.00024383,3]
[329636709,1718519520160,-500.0,0.00024383,3]
[329636710,1718519520177,-1409.82,0.00024383,3]
[329636711,1718519520187,-628.68,0.00024383,3]
[329636712,1718519520207,-208.85,0.00024383,3]
[329636713,1718519520228,-500.0,0.00024383,3]
[329636714,1718519520256,-500.0,0.00024383,3]
[329636715,1718519520272,-500.0,0.00024383,3]
[329636716,1718519520283,-500.0,0.00024383,3]
[329636717,1718519520300,-644.15,0.00024383,3]
[329636718,1718519520312,-500.0,0.00024383,3]
[329636719,1718519520334,-500.0,0.00024383,3]
[329636720,1718519520345,-1318.25,0.00024383,3]
[329636721,1718519520373,-500.0,0.00024383,3]
[329636722,1718519520390,-500.0,0.00024383,3]
[329636723,1718519520420,-500.0,0.00024383,3]
[329636724,1718519520435,-500.0,0.00024383,3]
[329636725,1718519520468,-500.0,0.00024383,3]
[329636726,1718519520492,-827.33,0.00024383,3]
[329636727,1718519520502,-526.71,0.00024383,3]
[329636728,1718519520522,-500.0,0.00024383,3]
[329636729,1718519520556,-500.0,0.00024383,3]
[329636730,1718519520570,-500.0,0.00024383,3]
[329636731,1718519520595,-500.0,0.00024383,3]
[329636732,1718519520615,-500.0,0.00024383,3]
[329636733,1718519520636,-500.0,0.00024383,3]
[329636734,1718519520647,-500.0,0.00024383,3]
[329636735,1718519520656,-500.0,0.00024383,3]
[329636736,1718519520667,-666.89,0.00024383,3]
[329636737,1718519520680,-528.0,0.00024383,3]
[329636738,1718519520716,-500.0,0.00024383,3]
[329636739,1718519520728,-500.0,0.00024383,3]
[329636740,1718519520738,-572.8,0.00024383,3]
[329636741,1718519520751,-6771.39,0.00024383,3]
[329636742,1718519520800,-2751.09,0.00024383,3]
[329636743,1718519520814,-500.0,0.00024383,3]
[329636744,1718519520843,-556.12,0.00024383,3]
[329636745,1718519520860,-500.0,0.00024383,3]
[329636746,1718519520885,-500.318703,0.00024383,3]
[329636747,1718519520920,-500.0,0.00024383,3]
[329636748,1718519520932,-500.318703,0.00024383,3]
[329636749,1718519520945,-4111.44,0.00024383,3]
[329636750,1718519520958,-500.0,0.00024383,3]
[329636751,1718519520977,-517.38,0.00024383,3]
[329636752,1718519520989,-500.0,0.00024383,3]
[329636753,1718519521010,-1089.23,0.00024383,3]
[329636754,1718519521023,-500.0,0.00024383,3]
[329636755,1718519521034,-752.44,0.00024383,3]
[329636756,1718519521060,-500.0,0.00024383,3]
[329636757,1718519521085,-502.57915865,0.00024383,3]
[329636758,1718519521112,-598.68,0.00024383,3]
[329636759,1718519521148,-16567.34,0.00024383,3]
[329636760,1718519521178,-500.0,0.00024383,3]
[329636761,1718519521192,-5825.82,0.00024383,3]
[329636762,1718519521214,-896.52,0.00024383,3]
[329636763,1718519521228,-500.0,0.00024383,3]
[329636764,1718519521245,-923.48,0.00024383,3]
[329636765,1718519521263,-565.58,0.00024383,3]
[329636766,1718519521284,-16140.01,0.00024383,3]
[329636767,1718519521297,-500.0,0.00024383,3]
[329636768,1718519521309,-867.54,0.00024383,3]
[329636769,1718519521322,-500.0,0.00024383,3]
[329636770,1718519521360,-720.86,0.00024383,3]
[329636771,1718519521376,-500.0,0.00024383,3]
[329636772,1718519521390,-1400.95,0.00024383,3]
[329636773,1718519521401,-883.04,0.00024383,3]
[329636774,1718519521414,-788.31,0.00024383,3]
[329636775,1718519521445,-614.72,0.00024383,3]
[329636776,1718519521460,-1333.44,0.00024383,3]
[329636777,1718519521473,-636.64,0.00024383,3]
[329636778,1718519521493,-1108.65,0.00024383,3]
[329636779,1718519521513,-1571.99,0.00024383,3]
[329636780,1718519521542,-1584.23,0.00024383,3]
[329636781,1718519521567,-4835.69,0.00024383,3]
[329636782,1718519521595,-500.0,0.00024383,3]
[329636783,1718519521644,-675.02,0.00024383,3]
[329636784,1718519521673,-1506.09,0.00024383,3]
[329636785,1718519521684,-547.67,0.00024383,3]
[329636786,1718519521710,-500.0,0.00024383,3]
[329636787,1718519521725,-500.0,0.00024383,3]
[329636788,1718519521742,-2665.25,0.00024383,3]
[329636789,1718519521756,-500.0,0.00024383,3]
[329636790,1718519521776,-500.58,0.00024383,3]
[329636791,1718519521802,-768.07,0.00024383,3]
[329636792,1718519521820,-2906.49,0.00024383,3]
[329636793,1718519521857,-551.95,0.00024383,3]
[329636794,1718519521874,-1245.63,0.00024383,3]
[329636795,1718519521891,-679.0,0.00024383,3]
[329636796,1718519521903,-500.0,0.00024383,3]
[329636797,1718519521925,-954.41,0.00024383,3]
[329636798,1718519521944,-500.0,0.00024383,3]
[329636799,1718519521962,-500.0,0.00024383,3]
[329636800,1718519522001,-998.69,0.00024383,3]
[329636801,1718519522015,-500.0,0.00024383,3]
[329636802,1718519522029,-526.53,0.00024383,3]
[329636803,1718519522051,-500.0,0.00024383,3]
[329636804,1718519522063,-500.0,0.00024383,3]
[329636805,1718519522075,-574.1,0.00024383,3]
[329636806,1718519522086,-500.0,0.00024383,3]
[329636807,1718519522099,-1602.8,0.00024383,3]
[329636808,1718519522114,-500.0,0.00024383,3]
[329636809,1718519522126,-1254.36,0.00024383,3]
[329636810,1718519522140,-1766.79,0.00024383,3]
[329636811,1718519522173,-622.71,0.00024383,3]
[329636812,1718519522187,-500.0,0.00024383,3]
[329636813,1718519522204,-1978.99,0.00024383,3]
[329636814,1718519522232,-1271.11,0.00024383,3]
[329636815,1718519522246,-897.11,0.00024383,3]
[329636816,1718519522260,-673.16,0.00024383,3]
[329636817,1718519522279,-1458.59,0.00024383,3]
[329636818,1718519522297,-500.0,0.00024383,3]
[329636819,1718519522311,-500.0,0.00024383,3]
[329636820,1718519522328,-500.0,0.00024383,3]
[329636821,1718519522346,-503.26,0.00024383,3]
[329636822,1718519522391,-1882.15,0.00024383,3]
[329636823,1718519522420,-900.94,0.00024383,3]
[329636824,1718519522436,-6355.77,0.00024383,3]
[329636825,1718519522447,-797.28,0.00024383,3]
[329636826,1718519522458,-500.0,0.00024383,3]
[329636827,1718519522472,-500.0,0.00024383,3]
[329636828,1718519522486,-500.0,0.00024383,3]
[329636829,1718519522500,-774.66,0.00024383,3]
[329636830,1718519522512,-749.71,0.00024383,3]
[329636831,1718519522525,-564.43,0.00024383,3]
[329636832,1718519522548,-500.0,0.00024383,3]
[329636833,1718519522560,-1539.73,0.00024383,3]
[329636834,1718519522582,-500.0,0.00024383,3]
[329636835,1718519522595,-417.91728979,0.00024383,3]
[329636836,1718519522612,-3132.14,0.00024383,3]
[329636837,1718519522626,-500.0,0.00024383,3]
[329636838,1718519522639,-500.0,0.00024383,3]
[329636839,1718519522673,-500.0,0.00024383,3]
[329636840,1718519522704,-1719.13,0.00024383,3]
[329636841,1718519522722,-500.0,0.00024383,3]
[329636842,1718519522736,-500.0,0.00024383,3]
[329636843,1718519522747,-500.0,0.00024383,3]
[329636844,1718519522759,-877.15,0.00024383,3]
[329636845,1718519522770,-638.19,0.00024383,3]
[329636846,1718519522783,-500.0,0.00024383,3]
[329636847,1718519522794,-507.88,0.00024383,3]
[329636848,1718519522806,-1256.01,0.00024383,3]
[329636849,1718519522821,-1319.04,0.00024383,3]
[329636850,1718519522834,-831.44,0.00024383,3]
[329636851,1718519522845,-1880.82,0.00024383,3]
[329636852,1718519522858,-889.01,0.00024383,3]
[329636853,1718519522874,-500.0,0.00024383,3]
[329636854,1718519522893,-839.73,0.00024383,3]
[329636855,1718519522912,-1019.43,0.00024383,3]
[329636856,1718519522927,-876.34,0.00024383,3]
[329636857,1718519522939,-1263.54,0.00024383,3]
[329636858,1718519522957,-1051.98,0.00024383,3]
[329636859,1718519522972,-414.48219428,0.00024383,3]
[329636860,1718519522993,-868.27,0.00024383,3]
[329636861,1718519523008,-500.0,0.00024383,3]
[329636862,1718519523027,-500.0,0.00024383,3]
[329636863,1718519523038,-1623.39,0.00024383,3]
[329636864,1718519523052,-970.73,0.00024383,3]
[329636865,1718519523064,-898.14,0.00024383,3]
[329636866,1718519523077,-500.0,0.00024383,3]
[329636867,1718519523091,-826.07,0.00024383,3]
[329636868,1718519523103,-500.0,0.00024383,3]
[329636869,1718519523124,-882.22,0.00024383,3]
[329636870,1718519523137,-854.76,0.00024383,3]
[329636871,1718519523149,-1666.34,0.00024383,3]
[329636872,1718519523162,-1419.04,0.00024383,3]
[329636873,1718519523176,-938.36,0.00024383,3]
[329636874,1718519523193,-535.88,0.00024383,3]
[329636875,1718519523214,-771.1,0.00024383,3]
[329636876,1718519523227,-500.0,0.00024383,3]
[329636877,1718519523249,-546.14,0.00024383,3]
[329636878,1718519523263,-605.49826072,0.00024383,3]
[329636879,1718519523277,-637.63,0.00024383,3]
[329636880,1718519523292,-500.0,0.00024383,3]
[329636881,1718519523313,-534.11,0.00024383,3]
[329636882,1718519523352,-500.0,0.00024383,3]
[329636883,1718519523370,-500.0,0.00024383,3]
[329636884,1718519523387,-733.88,0.00024383,3]
[329636885,1718519523429,-1079.11,0.00024383,3]
[329636886,1718519523447,-990.93,0.00024383,3]
[329636887,1718519523493,-500.0,0.00024383,3]
[329636888,1718519523524,-500.0,0.00024383,3]
[329636889,1718519523547,-500.0,0.00024383,3]
[329636890,1718519523561,-500.0,0.00024383,3]
[329636891,1718519523579,-592.82,0.00024383,3]
[329636892,1718519523596,-2735.16,0.00024383,3]
[329636893,1718519523628,-599.16,0.00024383,3]
[329636894,1718519523642,-631.36,0.00024383,3]
[329636895,1718519523660,-505.74,0.00024383,3]
[329636896,1718519523681,-609.47,0.00024383,3]
[329636897,1718519523692,-707.73,0.00024383,3]
[329636898,1718519523713,-500.0,0.00024383,3]
[329636899,1718519523736,-537.61,0.00024383,3]
[329636900,1718519523768,-598.47,0.00024383,3]
[329636901,1718519523813,-158.82,0.00024384,2]
[329636902,1718519523841,-242.0,0.00024384,2]
[329636903,1718519523855,-890.07,0.00024384,2]
[329636904,1718519523886,-153.37724975,0.00024387,2]
[329636905,1718519523897,-150.0,0.00024391,2]
[329636906,1718519523907,-1500.0,0.00024398,2]
[329636907,1718519523919,-419.60799944,0.000244,2]
[329636908,1718519523933,-572.85988994,0.00024401,2]
[329636909,1718519523951,-150.0,0.00024406,2]
[329636910,1718519523964,-668.41653961,0.0002441,2]
[329636911,1718519523980,-5000.0,0.00024411,2]
[329636912,1718519523994,-150.0,0.00024411,2]
[329636913,1718519524009,-572.85988994,0.00024411,2]
[329636914,1718519524020,-5000.0,0.00024414,2]
[329636915,1718519524031,-150.0,0.00024415,2]
[329636916,1718519524042,-572.85988994,0.00024417,2]
[329636917,1718519524056,-8758.99246634,0.00024428,2]
[329636918,1718519524278,-24262.62432677,0.00024428,2]
[329636919,1718519524292,-150.0,0.00024431,2]
[329636920,1718519524303,-5000.0,0.00024438,2]
[329636921,1718519524314,-572.85988994,0.00024441,2]
[329636922,1718519524326,-150.0,0.00024445,2]
[329636923,1718519524368,-150.0,0.00024449,2]
[329636924,1718519524385,-154.01467209,0.0002445,2]
[329636925,1718519524414,-150.0,0.0002446,2]
[329636926,1718519524433,-150.0,0.00024465,2]
[329636927,1718519524447,-154.01467209,0.00024466,2]
[329636928,1718519524477,-7950.93979624,0.00024477,2]
[329636929,1718519524500,-150.0,0.0002448,2]
[329636930,1718519524525,-5000.0,0.00024493,2]
[329636931,1718519524536,-150.0,0.00024493,2]
[329636932,1718519524556,-150.0,0.00024493,2]
[329636933,1718519524572,-353.88,0.00024493,2]
[329636934,1718519524585,-527.06,0.00024493,2]
[329636935,1718519524602,-353.88,0.00024493,2]
[329636936,1718519524617,-150.0,0.00024493,2]
[329636937,1718519524630,-527.06,0.00024493,2]
[329636938,1718519524643,-353.88,0.00024493,2]
[329636939,1718519524654,-527.06,0.00024493,2]
[329636940,1718519524666,-150.0,0.00024493,2]
[329636941,1718519524680,-527.06,0.00024493,2]
[329636942,1718519524705,-150.0,0.00024493,2]
[329636943,1718519524716,-252.11,0.00024493,2]
[329636944,1718519524729,-423.19,0.00024493,2]
[329636945,1718519524751,-527.06,0.00024493,2]
[329636946,1718519524767,-150.0,0.00024493,2]
[329636947,1718519524780,-150.0,0.00024493,2]
[329636948,1718519524793,-423.19,0.00024493,2]
[329636949,1718519524805,-527.06,0.00024493,2]
[329636950,1718519524831,-527.06,0.00024493,2]
[329636951,1718519524842,-423.19,0.00024493,2]
[329636952,1718519524861,-423.19,0.00024493,2]
[329636953,1718519524875,-527.06,0.00024493,2]
[329636954,1718519524890,-423.19,0.00024493,2]
[329636955,1718519524906,-527.06,0.00024493,2]
[329636956,1718519524926,-423.19,0.00024493,2]
[329636957,1718519524954,-5000.0,0.00024495,2]
[329636958,1718519524974,-150.0,0.00024495,2]
[329636959,1718519524993,-150.0,0.00024497,2]
[329636960,1718519525010,-150.0,0.00024498,2]
[329636961,1718519525032,-152.1581309,0.000245,2]
[329636962,1718519525061,-152.0,0.00024506,6]
[329636963,1718519525108,-166.66666665,0.00024513,2]
[329636964,1718519525127,-150.0,0.00024521,2]
[329636965,1718519525162,-150.0,0.00024523,2]
[329636966,1718519525178,-164.04553704,0.00024523,2]
[329636967,1718519525198,-150.0,0.00024527,2]
[329636968,1718519525223,-150.0,0.0002454,2]
[329636969,1718519525272,-150.0,0.00024545,2]
[329636970,1718519525291,-150.0,0.0002455,2]
[329636971,1718519525305,-11679.13853857,0.0002455,2]
[329636972,1718519525324,-150.0,0.00024552,2]
[329636973,1718519525344,-668.41653961,0.00024558,2]
[329636974,1718519525355,-150.0,0.00024565,2]
[329636975,1718519525367,-150.0,0.00024567,2]
[329636976,1718519525386,-150.0,0.00024574,2]
[329636977,1718519525429,-668.41653961,0.00024577,2]
[329636978,1718519525460,-150.0,0.00024584,2]
[329636979,1718519525477,-5000.0,0.00024585,2]
[329636980,1718519525489,-152.28834751,0.00024587,2]
[329636981,1718519525501,-25000.0,0.00024591,2]
[329636982,1718519525519,-150.0,0.00024591,2]
[329636983,1718519525533,-150.0,0.00024597,2]
[329636984,1718519525548,-1102.96383004,0.00024598,2]
[329636985,1718519525568,-1037.3857711,0.00024598,2]
[329636986,1718519525587,-200.0,0.00024599,2]
[329636987,1718519525600,-500.0,0.00024599,2]
[329636988,1718519525620,-200.0,0.00024599,2]
[329636989,1718519525637,-5080.86,0.000246,2]
[329636990,1718519525651,-150.0,0.00024602,2]
[329636991,1718519525669,-150.0,0.00024603,2]
[329636992,1718519525695,-160.99634934,0.00024607,2]
[329636993,1718519525710,-150.0,0.00024613,2]
[329636994,1718519525730,-150.0,0.00024614,2]
[329636995,1718519525741,-154.84917017,0.00024615,2]
[329636996,1718519525752,-419.60799944,0.00024621,2]
[329636997,1718519525768,-150.0,0.00024637,2]
[329636998,1718519525779,-296.2601255,0.00024641,2]
[329636999,1718519525791,-324.0,0.0002465,2]
[329637000,1718519525815,-208.0,0.0002465,2]
[329637001,1718519525834,-152.19673152,0.00024651,2]
[329637002,1718519525846,-150.0,0.00024653,2]
[329637003,1718519525858,-346.74509819,0.00024657,3]
[329637004,1718519525868,-500.0,0.00024657,3]
[329637005,1718519525887,-500.0,0.00024657,3]
[329637006,1718519525900,-500.0,0.00024657,3]
[329637007,1718519525917,-500.0,0.00024657,3]
[329637008,1718519525930,-500.0,0.00024657,3]
[329637009,1718519525941,-500.0,0.00024657,3]
[329637010,1718519525954,-519.58,0.00024657,3]
[329637011,1718519525981,-500.0,0.00024657,3]
[329637012,1718519526019,-500.0,0.00024657,3]
[329637013,1718519526032,-500.0,0.00024657,3]
[329637014,1718519526043,-500.0,0.00024657,3]
[329637015,1718519526064,-500.0,0.00024657,3]
[329637016,1718519526085,-500.0,0.00024657,3]
[329637017,1718519526109,-500.0,0.00024657,3]
[329637018,1718519526120,-629.37888688,0.00024657,3]
[329637019,1718519526133,-438.22617285,0.00024657,3]
[329637020,1718519526152,-500.0,0.00024657,3]
[329637021,1718519526164,-500.0,0.00024657,3]
[329637022,1718519526175,-521.4,0.00024657,3]
[329637023,1718519526186,-500.0,0.00024657,3]
[329637024,1718519526196,-500.0,0.00024657,3]
[329637025,1718519526208,-500.0,0.00024657,3]
[329637026,1718519526222,-881.45,0.00024657,3]
[329637027,1718519526238,-515.61590006,0.00024657,3]
[329637028,1718519526248,-500.0,0.00024657,3]
[329637029,1718519526259,-500.0,0.00024657,3]
[329637030,1718519526271,-500.0,0.00024657,3]
[329637031,1718519526281,-517.49,0.00024657,3]
[329637032,1718519526295,-500.0,0.00024657,3]
[329637033,1718519526306,-500.0,0.00024657,3]
[329637034,1718519526328,-517.12,0.00024657,3]
[329637035,1718519526341,-500.0,0.00024657,3]
[329637036,1718519526351,-500.0,0.00024657,3]
[329637037,1718519526364,-500.0,0.00024657,3]
[329637038,1718519526375,-500.0,0.00024657,3]